bitfinex-derivatives/quotes_ETHF0:USTF0_20251223
["timestamp","ask_amount","ask_price","bid_price","bid_amount"]
[1766469680702,3.36849786,2974.1,2973.7,1.49873957]
[1766469681505,3.36849786,2974.1,2973.7,0.00398252]
[1766469682903,0.00349786,2974.1,2973.7,0.00398252]
[1766469683104,3.365,2974.4,2973.7,3.36898252]
[1766469684102,3.36767902,2974.4,2973.7,3.36898252]
[1766469686108,3.36767902,2974.4,2973.7,0.00398252]
[1766469687006,3.36767902,2974.4,2973.4,0.00504371]
[1766469687213,3.36767902,2974.4,2973.5,3.364]
[1766469688116,5.685,2974.3,2973.4,0.00504371]
[1766469688713,5.85322,2974.3,2973.2,3.364]
[1766469689215,5.85322,2974.3,2973.2,3.36831605]
[1766469689513,5.85322,2974.3,2973.5,0.00504371]
[1766469689514,0.00504371,2974.0,2973.5,0.00504371]
[1766469689713,3.364,2973.9,2973.5,0.00504371]
[1766469690414,9.049,2974.3,2973.5,3.36904371]
[1766469691315,3.364,2974.3,2973.5,3.36904371]
[1766469692612,5.83,2974.8,2973.6,6.464]
[1766469693514,5.83385259,2974.8,2973.6,6.464]
[1766469696516,0.00385259,2974.8,2973.6,6.464]
[1766469697920,0.00385259,2974.8,2973.7,9.825]
[1766469702418,0.00385259,2974.8,2973.7,12.06538246]
[1766469703817,0.00385259,2974.8,2973.8,9.823]
[1766469704023,0.00385259,2974.8,2973.9,1.49327677]
[1766469704208,0.00385259,2974.8,2974.1,1.49327677]
[1766469704416,0.00385259,2974.8,2974.1,3.364]
[1766469707219,1.49327677,2974.5,2973.5,0.00504371]
[1766469707417,3.363,2974.4,2973.5,0.00504371]
[1766469709224,3.363,2974.4,2973.2,0.00431605]
[1766469709418,1.49327677,2974.0,2973.2,0.00431605]
[1766469709620,3.363,2973.9,2972.9,3.363]
[1766469710427,0.00504371,2973.7,2973.1,0.00504371]
[1766469710725,0.00504371,2973.7,2973.1,0.00774455]
[1766469727136,3.364,2973.7,2973.1,0.00774455]
[1766469729641,5.45923,2974.2,2973.1,0.00774455]
[1766469729831,3.364,2974.1,2973.1,0.00774455]
[1766469732746,3.364,2974.3,2973.1,0.00774455]
[1766469734147,3.364,2974.3,2973.3,1.49363174]
[1766469734441,3.364,2974.3,2973.4,3.364]
[1766469740351,0.17204259,2974.8,2973.4,3.364]
[1766469740652,3.364,2974.7,2973.5,1.49363174]
[1766469742359,3.364,2974.7,2973.6,3.364]
[1766469742957,4.85763174,2974.7,2973.6,3.364]
[1766469751174,3.364,2974.7,2973.6,3.364]
[1766469758175,3.364,2974.7,2973.6,4.85763174]
[1766469759278,3.364,2974.7,2973.6,3.364]
[1766469763277,3.364,2974.7,2973.8,1.49363174]
[1766469763482,3.364,2974.7,2973.9,3.364]
[1766469765380,3.364,2974.7,2973.3,1.49363174]
[1766469765776,3.364,2974.7,2973.4,14.449]
[1766469765978,3.364,2974.7,2973.3,1.49363174]
[1766469766583,3.364,2974.7,2973.1,0.00774455]
[1766469766780,3.364,2974.7,2973.2,14.59]
[1766469766979,3.364,2974.7,2973.3,1.49363174]
[1766469768485,1.80633354,2976.3,2974.6,1.49363174]
[1766469768687,0.16811,2976.2,2975.0,0.00504371]
[1766469768884,1.49363174,2976.0,2975.1,3.364]
[1766469769080,1.49363174,2976.0,2975.0,3.36904371]
[1766469769582,3.363,2975.9,2975.0,0.00504371]
[1766469769787,3.363,2975.9,2975.0,3.36804371]
[1766469771685,3.363,2975.9,2974.4,40.8]
[1766469771686,1.49863174,2975.7,2974.9,3.363]
[1766469771885,1.49863174,2975.7,2973.9,9.90263174]
[1766469771886,3.363,2975.6,2973.9,9.90263174]
[1766469772183,3.363,2975.6,2974.0,6.437]
[1766469772487,3.363,2975.6,2973.9,1.49363174]
[1766469772689,3.363,2975.6,2974.5,0.00504371]
[1766469772988,3.363,2975.6,2974.5,3.36804371]
[1766469774589,1.49363174,2975.4,2974.5,0.00504371]
[1766469774779,3.363,2975.3,2974.3,3.363]
[1766469775282,1.49363174,2974.8,2973.3,1.49363174]
[1766469775493,3.363,2974.8,2973.4,45.792]
[1766469775884,3.363,2974.8,2973.8,0.00504371]
[1766469776389,3.363,2974.8,2973.9,3.363]
[1766469776887,3.363,2974.8,2973.8,0.00504371]
[1766469777189,3.363,2974.8,2973.9,3.363]
[1766469780996,3.363,2974.8,2974.0,3.363]
[1766469781495,4.85644893,2974.8,2974.0,3.363]
[1766469781901,4.85644893,2974.8,2973.8,0.00504371]
[1766469782096,4.85644893,2974.8,2973.9,3.363]
[1766469782592,3.363,2974.8,2973.9,4.85644893]
[1766469782793,3.363,2974.8,2973.9,1.49344893]
[1766469783096,3.363,2974.8,2974.0,3.363]
[1766469786093,3.363,2975.2,2974.7,1.49344893]
[1766469786297,3.363,2975.2,2974.5,3.363]
[1766469787295,3.363,2975.2,2974.5,4.85644893]
[1766469788401,3.363,2975.2,2974.7,1.49344893]
[1766469789900,3.363,2975.2,2974.5,3.363]
[1766469789901,3.363,2975.5,2974.9,1.49344893]
[1766469790095,3.363,2975.5,2974.9,4.85644893]
[1766469790698,3.363,2975.5,2974.9,3.363]
[1766469791102,3.363,2975.5,2975.0,1.49344893]
[1766469793004,3.363,2975.5,2974.9,3.363]
[1766469793400,3.363,2975.5,2973.6,1.49344893]
[1766469793609,3.363,2975.5,2974.2,1.49344893]
[1766469793907,3.363,2975.5,2974.3,3.363]
[1766469794501,3.363,2975.5,2974.4,1.49344893]
[1766469795101,3.363,2975.5,2974.6,1.49344893]
[1766469796802,3.363,2975.5,2975.1,1.49344893]
[1766469797104,3.363,2975.5,2974.9,4.85644893]
[1766469797307,3.363,2975.5,2975.1,1.49344893]
[1766469797701,1.49344893,2977.2,2974.5,1.49344893]
[1766469797702,0.16806,2977.1,2975.4,1.49344893]
[1766469797908,1.20422236,2977.7,2976.3,1.49344893]
[1766469797909,1.49344893,2977.5,2976.3,1.49344893]
[1766469798109,3.363,2977.7,2975.9,1.49344893]
[1766469798296,1.49344893,2977.3,2976.1,1.49344893]
[1766469798501,5.359,2977.2,2976.1,4.85644893]
[1766469798802,0.00504371,2976.9,2976.4,0.00504371]
[1766469799003,5.36319217,2977.2,2976.4,0.00504371]
[1766469799202,5.36319217,2977.2,2976.4,4.86149264]
[1766469800304,5.36319217,2977.2,2976.1,0.00334093]
[1766469800305,6.8566411,2977.2,2976.1,0.00334093]
[1766469800506,6.8566411,2977.2,2976.1,3.36634093]
[1766469800806,6.8566411,2977.2,2976.1,3.36534093]
[1766469801008,6.8566411,2977.2,2976.1,4.85878986]
[1766469801207,5.36319217,2977.2,2976.1,4.85878986]
[1766469801410,0.00504371,2976.9,2976.4,0.00504371]
[1766469801611,3.36704371,2976.9,2976.4,0.00504371]
[1766469802002,3.36704371,2976.9,2976.1,4.85878986]
[1766469802912,3.36704371,2976.9,2976.1,3.36534093]
[1766469803105,3.36704371,2976.9,2976.2,0.00504371]
[1766469805014,1.49344893,2976.8,2976.1,0.00334093]
[1766469805211,1.49344893,2976.8,2975.9,3.362]
[1766469805411,3.36704371,2976.9,2975.9,3.362]
[1766469806114,3.36704371,2976.9,2976.1,1.49344893]
[1766469806313,3.36704371,2976.9,2976.2,0.00504371]
[1766469806706,3.36704371,2976.9,2976.1,0.00274384]
[1766469807713,3.36704371,2976.9,2976.2,4.371e-05]
[1766469808712,3.36704371,2976.9,2976.2,1.49349264]
[1766469809309,3.36704371,2976.9,2976.2,4.371e-05]
[1766469815214,3.36704371,2976.9,2976.2,1.49349264]
[1766469815417,3.36704371,2976.9,2976.6,1.49344893]
[1766469815610,3.36704371,2976.9,2976.4,1.49344893]
[1766469816110,3.36519217,2977.2,2976.8,1.49344893]
[1766469816511,3.36519217,2977.2,2976.6,1.49344893]
[1766469817117,3.37023588,2977.2,2976.6,1.49344893]
[1766469817518,3.37023588,2977.2,2976.7,1.49344893]
[1766469818114,0.00504371,2977.2,2976.7,1.49344893]
[1766469818314,0.00504371,2977.2,2976.8,3.361]
[1766469819125,0.00760682,2977.2,2976.8,3.361]
[1766469820326,0.00760682,2977.2,2976.5,1.49344893]
[1766469820520,0.00760682,2977.2,2976.4,7.91144893]
[1766469820826,0.00760682,2977.2,2976.5,1.49344893]
[1766469821026,0.00760682,2977.2,2976.5,4.85444893]
[1766469821228,0.00760682,2977.2,2976.7,1.49344893]
[1766469821427,0.00760682,2977.2,2976.9,1.49344893]
[1766469821921,0.00760682,2977.2,2976.7,1.49344893]
[1766469823227,0.00760682,2977.2,2976.8,3.361]
[1766469823625,3.361,2977.5,2976.9,1.49344893]
[1766469823824,3.361,2977.5,2977.1,1.49344893]
[1766469824123,3.361,2977.5,2977.1,1.44873304]
[1766469824527,3.361,2977.5,2977.3,1.44873304]
[1766469824728,5.825,2977.7,2977.3,1.44873304]
[1766469825123,3.361,2977.8,2977.5,1.44873304]
[1766469825319,3.361,2977.8,2977.3,1.44873304]
[1766469825720,3.36843964,2977.8,2977.3,1.44873304]
[1766469826324,3.36843964,2977.8,2977.1,3.361]
[1766469826325,3.36843964,2977.8,2977.5,1.44873304]
[1766469826525,3.36843964,2977.8,2977.1,3.361]
[1766469826726,0.19385222,2978.4,2977.6,1.44873304]
[1766469826922,3.361,2978.9,2978.3,1.44873304]
[1766469827732,3.36940244,2978.9,2978.3,1.45726931]
[1766469827936,1.44873304,2978.7,2977.1,1.44873304]
[1766469828135,1.44873304,2978.5,2977.5,1.44873304]
[1766469828438,1.44873304,2978.5,2977.6,3.36]
[1766469828730,1.44873304,2978.5,2977.5,3.36]
[1766469828931,1.44873304,2978.5,2977.5,3.3630454]
[1766469829132,1.44873304,2978.5,2977.5,4.81177844]
[1766469829331,1.44873304,2978.5,2977.5,1.45177844]
[1766469829929,1.44873304,2978.5,2977.7,0.00504371]
[1766469830425,1.44873304,2978.3,2977.7,0.00504371]
[1766469830624,1.44873304,2978.3,2977.5,0.0030454]
[1766469830625,3.36,2978.2,2977.3,3.36]
[1766469831028,5.792,2978.1,2977.3,1.44873304]
[1766469831634,5.792,2978.1,2977.4,0.00504371]
[1766469843039,5.792,2978.1,2977.4,4.371e-05]
[1766469843244,5.792,2978.1,2977.1,3.36]
[1766469843441,0.16803,2977.7,2976.6,3.36]
[1766469843642,9.183,2977.6,2976.6,3.36]
[1766469844236,0.00504371,2977.4,2976.8,0.00504371]
[1766469846647,0.00504371,2977.4,2976.6,3.36349539]
[1766469846847,0.16806,2977.2,2975.0,2.99819502]
[1766469847144,5.823,2977.1,2975.1,21.84361783]
[1766469847338,3.36,2977.0,2975.2,40.8]
[1766469847535,0.00504371,2976.4,2975.8,0.00336248]
[1766469847739,0.0088287,2976.4,2975.8,0.00644854]
[1766469847939,0.0088287,2976.4,2975.7,3.36]
[1766469848848,0.16813,2975.8,2975.4,5.78067]
[1766469849147,3.95314,2975.7,2974.5,3.36]
[1766469849448,3.95315,2975.6,2973.6,40.8]
[1766469849648,0.00504371,2974.9,2973.7,7.826]
[1766469849950,0.00504371,2974.9,2973.7,0.00295985]
[1766469850148,0.00504371,2974.9,2973.8,9.768]
[1766469850844,0.00504371,2974.9,2973.9,3.36]
[1766469853356,0.00504371,2974.9,2974.0,3.361]
[1766469856254,0.00504371,2974.9,2973.7,0.00295985]
[1766469856459,0.00504371,2974.9,2973.8,3.361]
[1766469868858,0.1682,2974.6,2973.7,0.00295985]
[1766469869064,6.647,2974.5,2973.7,0.00295985]
[1766469869464,6.647,2974.5,2973.3,3.363]
[1766469870365,6.647,2974.5,2973.3,0.00300962]
[1766469870566,0.16823,2974.1,2973.3,9.62e-06]
[1766469870861,3.53124,2974.0,2972.8,3.363]
[1766469871062,5.828,2973.9,2972.8,3.363]
[1766469871263,0.16824,2974.0,2972.8,3.363]
[1766469871458,3.363,2973.9,2972.8,3.363]
[1766469871658,3.36624932,2973.9,2972.8,3.36584149]
[1766469873866,0.16826,2973.6,2971.1,0.1684]
[1766469874072,3.363,2973.5,2971.3,2.53310991]
[1766469874273,0.037,2973.4,2971.5,3.55151892]
[1766469874568,0.037,2973.4,2971.7,2.53310991]
[1766469874769,0.16826,2973.6,2971.8,9.769]
[1766469874971,5.424,2973.5,2971.8,9.77205366]
[1766469875164,0.00504371,2972.9,2972.4,0.00504371]
[1766469875365,0.00504371,2972.9,2972.4,3.36904371]
[1766469876176,0.16822,2974.4,2972.4,3.36904371]
[1766469876480,3.364,2973.8,2972.5,6.407]
[1766469877176,0.00504371,2973.4,2972.5,6.407]
[1766469879385,0.00504371,2973.4,2972.4,0.00504371]
[1766469881385,3.589,2973.3,2972.4,0.00504371]
[1766469881581,3.364,2973.2,2972.4,0.00504371]
[1766469882385,0.17331371,2973.4,2972.4,0.00504371]
[1766469882687,3.364,2973.3,2972.4,0.00504371]
[1766469884993,0.17331371,2973.4,2972.4,0.00504371]
[1766469885288,3.53731371,2973.4,2972.4,0.00504371]
[1766469885589,0.00324932,2973.9,2973.1,2.53310991]
[1766469885779,0.00324932,2973.9,2973.2,3.364]
[1766469886682,0.00504371,2973.8,2973.2,3.364]
[1766469886988,0.00324932,2973.9,2973.2,3.364]
[1766469888087,0.00504371,2973.8,2973.2,3.364]
[1766469888576,0.00504371,2973.8,2972.4,10.95015362]
[1766469888577,0.00504371,2973.8,2972.4,0.00504371]
[1766469888785,3.36904371,2973.8,2972.5,4.829]
[1766469891584,3.36904371,2973.8,2972.4,0.00504371]
[1766469891784,3.36904371,2973.8,2972.5,9.768]
[1766469892178,5.56704371,2973.8,2972.6,3.364]
[1766469893383,5.56704371,2973.8,2972.4,0.00504371]
[1766469893592,5.56704371,2973.8,2972.4,3.36904371]
[1766469894588,0.16826,2973.7,2972.4,3.36904371]
[1766469895590,2.54426,2973.7,2972.4,3.36904371]
[1766469895792,0.00504371,2973.8,2972.5,2.53310991]
[1766469895995,0.00504371,2973.8,2972.9,2.53310991]
[1766469896188,0.00324932,2973.9,2973.0,8.936]
[1766469896386,3.364,2974.2,2973.0,8.936]
[1766469897188,0.00504371,2973.9,2973.0,8.936]
[1766469897388,3.364,2974.2,2973.0,8.936]
[1766469898597,0.00336248,2973.9,2973.0,8.936]
[1766469899995,0.00336248,2973.9,2973.2,2.24024752]
[1766469900195,0.00336248,2973.9,2973.3,3.364]
[1766469900397,3.36799201,2974.2,2973.3,3.364]
[1766469901395,3.36799201,2974.2,2972.9,2.24024752]
[1766469901599,3.36799201,2974.2,2973.0,9.766]
[1766469902593,3.36799201,2974.2,2972.9,2.24024752]
[1766469902893,3.36799201,2974.2,2973.0,9.766]
[1766469904197,3.36799201,2974.2,2973.3,2.24024752]
[1766469904396,3.36799201,2974.2,2973.4,3.364]
[1766469904604,0.00399201,2974.2,2973.4,3.364]
[1766469904897,3.364,2975.0,2973.8,2.24024752]
[1766469905095,3.364,2974.9,2974.1,0.00504371]
[1766469905396,3.364,2974.9,2974.2,3.364]
[1766469905796,3.3670222,2974.9,2974.2,3.36835246]
[1766469908795,3.3670222,2974.9,2974.2,5.60859998]
[1766469909003,3.3670222,2974.9,2974.2,3.36835246]
[1766469909499,8.411,2975.5,2974.2,3.36835246]
[1766469909500,0.16814,2975.7,2974.2,3.36835246]
[1766469909690,3.364,2975.6,2974.4,2.24024752]
[1766469909894,3.364,2975.6,2974.5,3.364]
[1766469910493,3.36712758,2975.6,2974.5,3.364]
[1766469910693,3.36712758,2975.6,2974.8,2.24024752]
[1766469910897,3.36712758,2975.6,2974.9,3.364]
[1766469911702,0.00312758,2975.6,2974.9,3.364]
[1766469911902,3.364,2976.1,2974.9,3.364]
[1766469912898,3.36748403,2976.1,2974.9,3.364]
[1766469915397,3.36748403,2976.1,2974.6,2.23781585]
[1766469915599,3.53560403,2976.1,2974.2,0.00435246]
[1766469915791,3.53560403,2976.1,2974.3,4.613]
[1766469919101,0.16813,2975.9,2974.2,0.00435246]
[1766469919299,16.99214,2975.8,2974.3,3.368]
[1766469920603,16.99214,2975.8,2974.4,2.23781585]
[1766469921003,8.58414,2975.8,2974.4,2.23781585]
[1766469921899,3.363,2975.8,2974.4,2.23781585]
[1766469924004,3.36648403,2976.1,2974.5,18.162]
[1766469924212,3.36648403,2976.1,2974.4,2.23781585]
[1766469924504,0.16812,2976.0,2974.5,9.755]
[1766469928403,0.16812,2976.0,2974.6,2.23781585]
[1766469934913,3.36648403,2976.1,2975.0,2.23781585]
[1766469935115,3.36648403,2976.1,2975.1,9.75]
[1766469935315,3.362,2976.5,2975.1,18.156]
[1766469935515,3.362,2976.5,2975.5,0.00504371]
[1766469935816,3.362,2976.5,2975.6,6.63]
[1766469936416,3.36623952,2976.5,2975.6,6.63]
[1766469936606,3.36623952,2976.5,2975.5,0.00504371]
[1766469936811,3.36623952,2976.5,2975.7,6.388]
[1766469937907,0.16804,2977.5,2976.1,2.23781585]
[1766469938113,0.16804,2977.5,2976.2,6.387]
[1766469938316,0.16804,2977.5,2976.2,9.749]
[1766469938616,3.362,2977.6,2976.2,9.749]
[1766469938813,3.362,2977.7,2976.2,9.749]
[1766469939008,3.36531679,2977.7,2976.2,9.749]
[1766469939208,3.36531679,2977.7,2976.3,9.749]
[1766469939429,3.36531679,2977.7,2976.4,3.362]
[1766469940323,3.36531679,2977.7,2976.3,0.00275374]
[1766469940618,3.53334679,2977.7,2976.4,3.362]
[1766469940821,3.53334679,2977.7,2976.4,5.722]
[1766469941315,3.36531679,2977.7,2976.3,3.36475374]
[1766469941519,5.60313264,2977.7,2975.5,2.24285956]
[1766469941716,0.16805,2977.3,2975.6,4.653]
[1766469941918,4.767,2977.2,2975.6,4.653]
[1766469942315,4.767,2977.2,2975.9,2.23781585]
[1766469942519,4.767,2977.2,2976.0,3.362]
[1766469942720,4.767,2977.2,2976.1,4.998]
[1766469945621,3.362,2977.2,2976.1,4.998]
[1766469954039,3.362,2977.2,2976.0,40.8]
[1766469954232,3.362,2977.2,2976.1,9.742]
[1766469954422,3.361,2977.6,2976.0,40.8]
[1766469954627,3.361,2977.6,2976.2,6.382]
[1766469954830,3.361,2977.6,2976.3,2.23781585]
[1766469955030,3.361,2977.6,2976.4,3.361]
[1766469955525,0.17134679,2977.7,2976.4,3.361]
[1766469955729,3.53234679,2977.7,2976.4,3.361]
[1766469957731,3.36431679,2977.7,2976.4,3.361]
[1766469957932,3.36431679,2977.7,2976.7,2.23781585]
[1766469958139,3.36431679,2977.7,2976.8,9.743]
[1766469958337,0.00331679,2977.7,2976.8,9.743]
[1766469958839,0.00331679,2977.7,2976.9,6.382]
[1766469959039,0.00331679,2977.7,2977.0,0.00504371]
[1766469959533,0.00331679,2977.7,2977.1,3.361]
[1766469959733,0.00331679,2977.7,2977.1,1.6732]
[1766469959940,0.00331679,2977.7,2977.0,9.74604371]
[1766469960336,0.00331679,2977.7,2977.0,0.00504371]
[1766469960541,0.00331679,2977.7,2977.1,3.36]
[1766469963645,3.36331679,2977.7,2977.0,4.371e-05]
[1766469963838,3.36331679,2977.7,2976.7,3.36]
[1766469964739,0.00504371,2977.5,2976.9,0.00504371]
[1766469964938,3.36,2977.4,2976.9,0.00504371]
[1766469969348,3.36,2977.4,2976.9,4.371e-05]
[1766469969648,3.36,2977.4,2976.7,3.36]
[1766469970443,3.36,2977.4,2976.8,0.00504371]
[1766469972344,0.00331679,2977.7,2976.8,0.00504371]
[1766469972552,0.00331679,2977.7,2976.8,5.00504371]
[1766469972752,0.00331679,2977.7,2976.9,3.36]
[1766469973347,0.00504371,2977.6,2976.9,3.36]
[1766469974644,0.00331679,2977.7,2976.9,3.36]
[1766469974954,0.00222291,2977.7,2976.9,3.36]
[1766469980871,3.52799,2978.4,2976.8,0.00504371]
[1766469981063,3.36,2978.3,2976.9,4.687]
[1766469981666,3.36,2978.3,2976.8,0.00504371]
[1766469981867,3.36364492,2978.3,2976.9,9.733]
[1766469983963,0.16801,2978.0,2976.8,3.36504371]
[1766469984172,9.183,2977.9,2976.8,3.36504371]
[1766469985674,9.183,2977.9,2976.8,0.00504371]
[1766469985880,9.183,2977.9,2976.8,3.36504371]
[1766469986175,9.35102,2977.9,2976.8,3.36504371]
[1766469987982,9.35102,2977.9,2976.8,0.00504371]
[1766469988184,9.35102,2977.9,2976.9,3.36]
[1766469991579,9.35102,2977.9,2976.9,4.85070036]
[1766469993682,9.183,2977.9,2976.9,4.85070036]
[1766469994680,3.36,2978.2,2976.9,4.85070036]
[1766469994885,3.36,2978.2,2977.2,1.49070036]
[1766469995080,3.36,2978.2,2977.3,3.36]
[1766469995678,3.36,2978.2,2977.5,1.49070036]
[1766469995879,0.16794,2979.3,2977.8,1.49070036]
[1766469996078,8.4,2979.1,2977.9,3.36]
[1766469996279,8.4,2979.1,2978.2,4.371e-05]
[1766469996784,8.4,2979.1,2978.2,0.00257766]
[1766469997084,8.40433917,2979.1,2978.2,0.00257766]
[1766469997290,0.005,2978.9,2978.2,0.00257766]
[1766469997494,3.36,2978.8,2978.2,0.00257766]
[1766469998587,0.005,2978.9,2978.2,0.00257766]
[1766469998788,0.005,2978.9,2978.2,4.85327802]
[1766469998982,0.00433917,2979.1,2978.4,1.49070036]
[1766469999182,0.00433917,2979.1,2978.5,3.36]
[1766470000076,0.00433917,2979.1,2978.2,0.00257766]
[1766470000281,3.36,2979.0,2978.2,0.00257766]
[1766470001277,3.36,2979.0,2978.2,3.36157766]
[1766470001787,3.36,2979.0,2978.2,0.00257766]
[1766470002185,3.36,2979.0,2978.1,3.359]
[1766470002384,3.36,2979.0,2978.0,3.359]
[1766470002779,3.36,2979.0,2977.7,1.47086797]
[1766470002986,3.36,2979.0,2978.0,3.359]
[1766470003184,3.36,2979.0,2978.2,0.00504371]
[1766470006995,3.52796,2979.0,2978.0,3.362716]
[1766470007385,3.52796,2979.0,2978.0,3.166116]
[1766470008082,0.00504371,2978.8,2978.2,0.00504371]
[1766470008283,3.359,2978.7,2978.2,0.00504371]
[1766470010182,3.359,2978.7,2977.8,3.359]
[1766470011190,3.359,2978.7,2978.0,0.00504371]
[1766470012187,5.822,2978.6,2977.8,4.184e-05]
[1766470012389,0.168,2978.2,2977.1,3.359]
[1766470012592,9.181,2978.1,2977.1,3.359]
[1766470013301,9.181,2978.1,2977.3,0.00504371]
[1766470015690,3.359,2978.0,2977.3,0.00504371]
[1766470019199,3.359,2978.0,2977.4,3.359]
[1766470020093,3.359,2978.0,2977.5,1.4713206]
[1766470020595,5.99,2978.2,2977.5,1.4713206]
[1766470020799,3.359,2978.1,2977.4,3.359]
[1766470022299,3.359,2978.1,2977.4,4.8303206]
[1766470024004,3.359,2978.1,2977.4,3.359]
[1766470027903,4.8303206,2978.1,2977.3,0.00504371]
[1766470028099,1.4713206,2977.6,2976.5,3.359]
[1766470028399,3.359,2977.7,2977.2,1.4713206]
[1766470028999,3.36404371,2977.7,2977.2,1.47636431]
[1766470029202,3.36404371,2977.7,2977.2,1.47996486]
[1766470029502,3.36404371,2977.7,2977.2,0.00864426]
[1766470031404,3.36,2978.1,2977.3,4.8313206]
[1766470032399,0.00504371,2978.0,2977.3,4.8313206]
[1766470040012,0.00504371,2978.0,2977.3,3.36]
[1766470040309,0.00504371,2978.0,2977.3,4.8313206]
[1766470042507,0.00504371,2978.0,2977.3,3.36]
[1766470042906,0.00504371,2978.0,2977.3,4.8313206]
[1766470045316,3.36,2978.5,2977.6,1.4713206]
[1766470045506,3.36,2978.5,2977.6,4.8313206]
[1766470045914,1.4713206,2978.4,2977.6,3.36]
[1766470046111,1.4713206,2978.4,2977.2,1.47996486]
[1766470046313,0.00504371,2978.1,2977.3,3.36]
[1766470046511,3.36,2978.0,2977.3,3.36]
[1766470047617,3.36,2978.0,2977.4,1.4713206]
[1766470048220,1.5829,2978.0,2977.6,1.4713206]
[1766470048511,0.16795,2979.2,2977.9,1.4713206]
[1766470048719,3.36,2979.0,2978.3,1.4713206]
[1766470048917,3.36,2979.0,2978.1,1.4713206]
[1766470049318,0.00504371,2978.8,2978.3,1.4713206]
[1766470049618,3.36433917,2979.1,2978.5,1.4713206]
[1766470049816,3.36433917,2979.1,2978.3,4.8313206]
[1766470051616,3.36433917,2979.1,2978.5,1.4713206]
[1766470051833,3.36433917,2979.1,2978.3,3.36]
[1766470051834,3.36433917,2979.1,2978.7,1.4713206]
[1766470052122,3.36433917,2979.1,2978.4,1.4713206]
[1766470052506,3.36433917,2979.1,2978.3,3.36]
[1766470052705,1.4713206,2979.0,2978.0,3.359]
[1766470053115,3.36433917,2979.1,2978.0,4.8303206]
[1766470053520,3.36433917,2979.1,2977.7,40.8]
[1766470053725,3.36433917,2979.1,2978.5,1.4713206]
[1766470054210,0.00433917,2979.1,2978.5,1.4713206]
[1766470054414,0.00433917,2979.1,2978.3,1.4713206]
[1766470054817,0.00433917,2979.1,2978.4,3.359]
[1766470055214,0.00433917,2979.1,2978.1,1.4713206]
[1766470055416,0.00433917,2979.1,2978.2,3.359]
[1766470056217,0.00433917,2979.1,2978.2,4.8303206]
[1766470056419,0.00433917,2979.1,2978.2,1.4713206]
[1766470057224,0.00433917,2979.1,2978.1,3.359]
[1766470057522,0.00433917,2979.1,2978.2,1.4713206]
[1766470057727,0.00433917,2979.1,2977.6,40.8]
[1766470058025,1.47565977,2979.1,2978.0,1.4713206]
[1766470058217,1.47565977,2979.1,2978.1,3.359]
[1766470058613,0.00433917,2979.1,2978.1,3.359]
[1766470061424,0.00433917,2979.1,2978.2,1.4713206]
[1766470064031,0.00433917,2979.1,2978.1,3.359]
[1766470064223,0.00433917,2979.1,2978.1,4.8303206]
[1766470068838,0.00433917,2979.1,2978.3,1.4713206]
[1766470069940,1.47565977,2979.1,2978.1,3.359]
[1766470070133,1.4713206,2978.9,2977.7,1.4713206]
[1766470070341,1.4713206,2978.5,2977.6,3.359]
[1766470070534,3.359,2978.4,2977.6,3.359]
[1766470070737,3.359,2978.4,2977.7,1.4713206]
[1766470071241,3.359,2978.4,2977.3,1.4713206]
[1766470071441,4.8303206,2978.4,2977.4,3.359]
[1766470072038,4.8303206,2978.4,2977.3,1.4713206]
[1766470072234,4.8303206,2978.4,2977.4,3.359]
[1766470072444,4.8303206,2978.4,2977.3,1.4713206]
[1766470072748,4.8303206,2978.4,2977.3,4.8303206]
[1766470073551,3.359,2978.4,2977.3,4.8303206]
[1766470074050,4.8303206,2978.4,2977.3,4.8303206]
[1766470075056,3.359,2978.4,2977.5,1.4713206]
[1766470079955,3.359,2978.4,2977.3,3.359]
[1766470081450,3.359,2978.4,2977.2,0.00864426]
[1766470081654,3.359,2978.4,2977.4,3.359]
[1766470082649,3.359,2978.4,2977.2,0.00864426]
[1766470082857,1.47137235,2977.8,2977.2,0.00864426]
[1766470083054,3.359,2977.7,2976.7,3.359]
[1766470083954,0.00504371,2977.5,2976.9,0.00504371]
[1766470085258,3.359,2977.4,2976.9,0.00504371]
[1766470085458,3.359,2977.4,2976.7,3.36190231]
[1766470085656,3.36404371,2977.5,2976.8,1.47137235]
[1766470086560,3.359,2977.6,2976.8,1.47137235]
[1766470086755,3.359,2977.6,2976.7,3.36190231]
[1766470087559,0.00504371,2977.4,2976.9,0.00504371]
[1766470090157,0.00504371,2977.4,2976.7,0.00290231]
[1766470090158,3.359,2977.3,2976.7,0.00290231]
[1766470090457,3.359,2977.3,2976.6,3.359]
[1766470091164,3.359,2977.3,2976.7,0.00504371]
[1766470091363,3.359,2977.3,2976.7,0.00816557]
[1766470092654,3.359,2977.3,2976.6,3.359]
[1766470092961,1.47137235,2977.1,2976.1,3.36]
[1766470093163,3.36,2977.0,2976.1,3.36]
[1766470093665,3.36402592,2977.0,2976.3,0.00504371]
[1766470099170,3.36402592,2977.0,2976.3,1.47641606]
[1766470099365,0.00402592,2977.0,2976.4,3.36]
[1766470099868,9.18904371,2977.4,2976.6,1.76668222]
[1766470100575,9.18904371,2977.4,2976.7,3.36]
[1766470100868,9.19150766,2977.4,2976.7,3.36]
[1766470105878,9.19150766,2977.4,2976.7,2.9668]
[1766470106173,9.19150766,2977.4,2976.4,5.223]
[1766470106174,11.10535396,2977.4,2976.3,0.00504371]
[1766470107177,11.27340396,2977.4,2976.3,0.00504371]
[1766470112076,0.16805,2977.3,2976.3,4.371e-05]
[1766470116887,0.16805,2977.3,2976.4,5.2738463]
[1766470118391,9.19150766,2977.4,2976.4,5.2738463]
[1766470123102,9.19150766,2977.4,2976.5,3.36]
[1766470126608,9.19150766,2977.4,2976.6,1.9138463]